bitfinex-derivatives/quotes_BNBF0:USTF0_20250211
["timestamp","ask_amount","ask_price","bid_price","bid_amount"]
[1739239001609,1.45671478,620.0,618.88,0.32316442]
[1739239001812,1.06886914,619.99,618.88,0.32316442]
[1739239002011,1.45671478,619.98,618.88,0.32316442]
[1739239002414,1.06886914,619.97,618.88,0.32316442]
[1739239002614,1.45671478,619.96,618.88,0.32316442]
[1739239002816,1.06886914,619.95,618.88,0.32316442]
[1739239003115,1.45671478,619.94,618.88,0.32316442]
[1739239003915,1.06886914,619.93,618.88,0.32316442]
[1739239004218,1.45933304,619.92,618.88,0.32316442]
[1739239004409,1.06886914,619.93,618.88,0.32316442]
[1739239004614,1.06886914,619.91,618.88,0.32316442]
[1739239005011,1.06886914,620.18,618.88,0.32316442]
[1739239005212,1.75577642,620.17,618.88,0.32316442]
[1739239005413,1.75577642,620.16,618.88,0.32316442]
[1739239005618,1.75644752,620.15,618.88,0.32316442]
[1739239005822,1.45993814,620.14,618.88,0.32316442]
[1739239006015,1.45993814,620.13,618.88,0.32316442]
[1739239006720,1.06886914,620.12,618.88,0.32316442]
[1739239006915,1.45993814,620.11,618.88,0.32316442]
[1739239007116,1.06886914,620.1,618.88,0.32316442]
[1739239007316,1.45993814,620.09,618.88,0.32316442]
[1739239007722,1.06886914,620.08,618.88,0.32316442]
[1739239007921,1.45993814,620.07,618.88,0.32316442]
[1739239008621,1.06886914,620.06,618.88,0.32316442]
[1739239008919,1.45993814,620.05,618.88,0.32316442]
[1739239009319,2.52880728,620.05,618.88,0.32316442]
[1739239009517,1.45993814,620.04,618.88,0.32316442]
[1739239009920,1.06886914,620.03,618.88,0.32316442]
[1739239010117,1.45993814,620.02,618.88,0.32316442]
[1739239010323,1.06886914,620.01,618.88,0.32316442]
[1739239010621,1.45993814,620.0,618.88,0.32316442]
[1739239011424,1.06886914,619.99,618.88,0.32316442]
[1739239011617,1.45993814,619.98,618.88,0.32316442]
[1739239012321,1.06886914,619.99,618.88,0.32316442]
[1739239012624,1.06886914,619.97,618.88,0.32316442]
[1739239013127,1.46417169,619.96,618.88,0.32316442]
[1739239013425,1.06886914,620.16,618.88,0.32316442]
[1739239013724,2.53338116,620.15,618.88,0.32316442]
[1739239013924,1.46451202,620.14,618.88,0.32316442]
[1739239014320,1.06886914,620.13,618.88,0.32316442]
[1739239014526,1.46451202,620.12,618.88,0.32316442]
[1739239014923,1.06886914,620.11,618.88,0.32316442]
[1739239015129,1.46451202,620.1,618.88,0.32316442]
[1739239015325,1.06886914,620.09,618.88,0.32316442]
[1739239015525,1.46451202,620.08,618.88,0.32316442]
[1739239016021,1.46507846,620.07,618.88,0.32316442]
[1739239016326,1.46507846,620.06,618.88,0.32316442]
[1739239016528,1.06886914,620.05,618.88,0.32316442]
[1739239016727,1.46507846,620.04,618.88,0.32316442]
[1739239017129,1.06886914,620.03,618.88,0.32316442]
[1739239017428,1.46507846,620.02,618.88,0.32316442]
[1739239018123,1.46546543,620.01,618.88,0.32316442]
[1739239018328,1.46546543,620.0,618.88,0.32316442]
[1739239019028,1.06886914,619.99,618.88,0.32316442]
[1739239019228,1.46546543,619.98,618.88,0.32316442]
[1739239019429,1.06886914,619.97,618.88,0.32316442]
[1739239019632,1.46546543,619.96,618.88,0.32316442]
[1739239020121,1.06886914,619.95,618.88,0.32316442]
[1739239020828,1.06886914,620.16,618.88,0.32316442]
[1739239021026,1.46498807,620.15,618.88,0.32316442]
[1739239021531,1.06886914,620.14,618.88,0.32316442]
[1739239021733,1.46498807,620.13,618.88,0.32316442]
[1739239022030,2.53385721,620.13,618.88,0.32316442]
[1739239022230,1.46498807,620.12,618.88,0.32316442]
[1739239022426,2.53385721,620.12,618.88,0.32316442]
[1739239022731,1.46498807,620.11,618.88,0.32316442]
[1739239022925,2.53385721,620.11,618.88,0.32316442]
[1739239023125,1.46498807,620.1,618.88,0.32316442]
[1739239023425,1.06886914,620.09,618.88,0.32316442]
[1739239023629,1.46498807,620.08,618.88,0.32316442]
[1739239024028,1.06886914,620.07,618.88,0.32316442]
[1739239024227,1.46498807,620.06,618.88,0.32316442]
[1739239024632,1.06886914,620.05,618.88,0.32316442]
[1739239024827,1.46498807,620.04,618.88,0.32316442]
[1739239025033,1.06886914,620.03,618.88,0.32316442]
[1739239025234,1.46498807,620.02,618.88,0.32316442]
[1739239025834,1.06886914,620.01,618.88,0.32316442]
[1739239026130,1.46498807,620.0,618.88,0.32316442]
[1739239026536,1.06886914,619.99,618.88,1.52140825]
[1739239026736,1.46498807,619.98,618.88,1.52140825]
[1739239027135,1.06886914,619.97,618.88,1.52140825]
[1739239027935,1.06886914,620.16,618.88,1.52140825]
[1739239028135,1.76211678,620.15,618.88,1.52140825]
[1739239028337,1.76211678,620.14,618.88,1.52140825]
[1739239028547,1.76211678,620.13,618.88,1.52140825]
[1739239028837,1.46567259,620.12,618.98,1.19824383]
[1739239029032,1.46567259,620.11,618.99,0.32310699]
[1739239029637,1.06886914,620.1,618.99,0.32310699]
[1739239029839,1.46567259,620.09,618.99,0.32310699]
[1739239030439,1.06886914,620.08,618.99,0.32310699]
[1739239030636,1.46567259,620.07,618.99,0.32310699]
[1739239030836,1.06886914,620.06,618.99,0.32310699]
[1739239031033,1.46567259,620.05,618.99,0.32310699]
[1739239031234,1.46567259,620.05,619.02,1.19824383]
[1739239031438,1.46567259,620.05,619.03,0.32308611]
[1739239031835,1.06886914,620.04,619.03,0.32308611]
[1739239032340,1.46616157,620.03,619.03,0.32308611]
[1739239032743,1.06886914,620.02,619.03,0.32308611]
[1739239033140,1.06886914,620.16,619.03,0.32308611]
[1739239033344,1.46639858,620.15,619.03,0.32308611]
[1739239034040,1.06886914,620.14,619.03,0.32308611]
[1739239034240,1.46639858,620.13,619.03,0.32308611]
[1739239034644,2.53550501,620.12,619.03,0.32308611]
[1739239034838,1.46663587,620.11,619.03,0.32308611]
[1739239035240,1.06886914,620.1,619.03,0.32308611]
[1739239035440,1.46663587,620.09,619.03,0.32308611]
[1739239035640,2.53550501,620.09,619.03,0.32308611]
[1739239035939,2.53550501,620.08,619.03,0.32308611]
[1739239036142,1.46663587,620.07,619.03,0.32308611]
[1739239036343,2.5356383,620.06,619.03,0.32308611]
[1739239036542,1.46676916,620.05,619.03,0.32308611]
[1739239036742,1.06886914,620.04,619.03,0.32308611]
[1739239036937,1.46676916,620.03,619.03,0.32308611]
[1739239037143,1.06886914,620.02,619.03,0.32308611]
[1739239037343,1.46676916,620.01,619.03,0.32308611]
[1739239037543,1.06886914,620.0,619.03,0.32308611]
[1739239037741,1.46676916,619.99,619.03,0.32308611]
[1739239038042,1.06886914,619.98,619.03,0.32308611]
[1739239038440,1.46660372,619.97,619.03,0.32308611]
[1739239038642,2.53547286,619.97,619.03,0.32308611]
[1739239038838,1.46660372,619.96,619.03,0.32308611]
[1739239039041,2.53547286,619.96,619.03,0.32308611]
[1739239039241,1.46660372,619.95,619.03,0.32308611]
[1739239039644,1.06886914,619.94,619.03,0.32308611]
[1739239039842,1.46660372,619.93,619.03,0.32308611]
[1739239040245,1.06886914,619.92,619.03,0.32308611]
[1739239040447,1.46660372,619.91,619.03,0.32308611]
[1739239040641,1.06886914,619.9,619.03,0.32308611]
[1739239040840,1.46660372,619.89,619.03,0.32308611]
[1739239041041,1.06886914,619.88,619.03,0.32308611]
[1739239041245,1.46660372,619.87,619.03,0.32308611]
[1739239041545,1.06886914,619.86,619.03,0.32308611]
[1739239042646,1.06886914,620.16,619.03,0.32308611]
[1739239042841,1.4671995,620.15,619.03,0.32308611]
[1739239043146,1.4671995,620.14,619.03,0.32308611]
[1739239043445,1.4671995,620.13,619.03,0.32308611]
[1739239043645,1.4671995,620.12,619.03,0.32308611]
[1739239043839,1.4671995,620.11,619.03,0.32308611]
[1739239044044,1.4671995,620.1,619.03,0.32308611]
[1739239044244,1.4671995,620.09,619.03,0.32308611]
[1739239044441,1.4671995,620.08,619.03,0.32308611]
[1739239045042,1.06886914,620.07,619.03,0.32308611]
[1739239045247,1.4671995,620.06,619.03,0.32308611]
[1739239045548,1.06886914,620.05,619.03,0.32308611]
[1739239045847,1.4671995,620.04,619.03,0.32308611]
[1739239046348,1.06886914,620.03,619.03,0.32308611]
[1739239046549,1.4671995,620.02,619.03,0.32308611]
[1739239046942,2.53697173,620.01,619.03,0.32308611]
[1739239047145,1.46810259,620.0,619.03,0.32308611]
[1739239047649,1.06886914,619.99,619.03,0.32308611]
[1739239047849,1.46810259,619.98,619.03,0.32308611]
[1739239048046,1.06886914,619.97,619.03,0.32308611]
[1739239048245,1.46810259,619.96,619.03,0.32308611]
[1739239048746,1.06886914,619.95,619.03,0.32308611]
[1739239049552,1.06886914,620.16,619.03,0.32308611]
[1739239049752,1.46797029,620.15,619.03,0.32308611]
[1739239049954,1.46797029,620.14,619.03,0.32308611]
[1739239050154,1.46797029,620.13,619.03,0.32308611]
[1739239050354,1.46797029,620.12,619.03,0.32308611]
[1739239050555,1.46797029,620.11,619.03,0.32308611]
[1739239050955,1.06886914,620.1,619.03,0.32308611]
[1739239051255,1.46797029,620.09,619.03,0.32308611]
[1739239051955,1.06886914,620.08,619.03,0.32308611]
[1739239052150,1.46797029,620.07,619.03,0.32308611]
[1739239052855,2.53683943,620.06,619.03,0.32308611]
[1739239053056,1.46797029,620.05,619.03,0.32308611]
[1739239053256,1.46797029,620.04,619.03,0.32308611]
[1739239053555,2.53683943,620.03,619.03,0.32308611]
[1739239053758,1.46797029,620.02,619.03,0.32308611]
[1739239053957,1.06886914,620.03,619.03,0.32308611]
[1739239053958,2.53683943,620.01,619.03,0.32308611]
[1739239054151,1.46797029,620.0,619.03,0.32308611]
[1739239054355,1.46797029,619.99,619.03,0.32308611]
[1739239054554,1.46797029,619.98,619.03,0.32308611]
[1739239054756,1.46797029,619.97,619.03,0.32308611]
[1739239055355,2.53719261,619.96,619.03,0.32308611]
[1739239055551,1.46832347,619.95,619.03,0.32308611]
[1739239056251,1.06886914,619.94,619.03,0.32308611]
[1739239056456,1.46832347,619.93,619.03,0.32308611]
[1739239056756,2.53719261,619.93,619.03,0.32308611]
[1739239057058,1.46832347,619.92,619.03,0.32308611]
[1739239057358,1.06886914,619.91,619.03,0.32308611]
[1739239057557,1.46832347,619.9,619.03,0.32308611]
[1739239057953,1.06886914,619.89,619.03,0.32308611]
[1739239058151,1.46832347,619.88,619.03,0.32308611]
[1739239058655,1.06886914,619.87,619.03,0.32308611]
[1739239059959,1.06886914,620.16,619.03,0.32308611]
[1739239060154,1.46835403,620.15,619.03,0.32308611]
[1739239060353,1.46835403,620.14,619.03,0.32308611]
[1739239060556,1.46835403,620.13,619.03,0.32308611]
[1739239060754,1.46835403,620.12,619.03,0.32308611]
[1739239060956,1.46835403,620.11,619.03,0.32308611]
[1739239061157,1.46835403,620.1,619.03,0.32308611]
[1739239061357,1.46835403,620.09,619.03,0.32308611]
[1739239061555,1.46835403,620.08,619.03,0.32308611]
[1739239061755,1.46835403,620.07,619.03,0.32308611]
[1739239061959,1.46835403,620.06,619.03,0.32308611]
[1739239062155,1.46835403,620.05,619.03,0.32308611]
[1739239062359,1.46835403,620.04,619.03,0.32308611]
[1739239062561,1.46835403,620.03,619.03,0.32308611]
[1739239062761,1.46835403,620.02,619.03,0.32308611]
[1739239063358,1.06886914,620.01,619.03,0.32308611]
[1739239063563,2.53722317,620.0,619.03,0.32308611]
[1739239063760,1.46835403,619.99,619.03,0.32308611]
[1739239064558,1.06886914,619.98,619.03,0.32308611]
[1739239064759,2.53722317,619.97,619.03,0.32308611]
[1739239064959,1.46835403,619.96,619.03,0.32308611]
[1739239065761,1.06886914,619.95,619.03,0.32308611]
[1739239066065,1.46933204,619.94,619.03,0.32308611]
[1739239066562,1.06886914,619.93,619.03,0.32308611]
[1739239066763,1.46933204,619.92,619.03,0.32308611]
[1739239066958,2.53820118,619.92,619.03,0.32308611]
[1739239067158,1.46933204,619.91,619.03,0.32308611]
[1739239067462,2.53820118,619.91,619.03,0.32308611]
[1739239067663,2.53820118,619.9,619.03,0.32308611]
[1739239067860,1.06886914,619.9,619.03,0.32308611]
[1739239068062,1.06886914,619.89,619.03,0.32308611]
[1739239068658,1.06886914,620.16,619.03,0.32308611]
[1739239068863,1.46970568,620.15,619.03,0.32308611]
[1739239069067,2.53857482,620.14,619.03,0.32308611]
[1739239069258,1.46970568,620.13,619.03,0.32308611]
[1739239069461,1.46970568,620.12,619.03,0.32308611]
[1739239069662,1.46970568,620.11,619.03,0.32308611]
[1739239069862,1.46970568,620.1,619.03,0.32308611]
[1739239070160,1.47038688,620.09,619.03,0.32308611]
[1739239070362,1.47038688,620.08,619.03,0.32308611]
[1739239070563,2.53925602,620.07,619.03,0.32308611]
[1739239070765,1.47038688,620.06,619.03,0.32308611]
[1739239071063,2.53925602,620.05,619.03,0.32308611]
[1739239071264,1.47038688,620.04,619.03,0.32308611]
[1739239071464,1.47038688,620.03,619.03,0.32308611]
[1739239071666,2.53925602,620.02,619.03,0.32308611]
[1739239071864,1.47038688,620.01,619.03,0.32308611]
[1739239072060,1.47038688,620.0,619.03,0.32308611]
[1739239072265,1.47038688,619.99,619.03,0.32308611]
[1739239072565,2.53925602,619.98,619.03,0.32308611]
[1739239072865,1.47038688,619.97,619.03,0.32308611]
[1739239073060,1.47038688,619.96,619.03,0.32308611]
[1739239073265,1.47038688,619.95,619.03,0.32308611]
[1739239073564,1.47038688,619.94,619.03,0.32308611]
[1739239073771,1.47038688,619.93,619.03,0.32308611]
[1739239073958,1.47038688,619.92,619.03,0.32308611]
[1739239074162,1.47011265,619.91,619.03,0.32308611]
[1739239074361,1.06886914,619.94,619.03,0.32308611]
[1739239074561,1.06886914,619.9,619.03,0.32308611]
[1739239075363,1.06886914,620.16,619.03,0.32308611]
[1739239075565,1.47036847,620.15,619.03,0.32308611]
[1739239075766,1.47036847,620.14,619.03,0.32308611]
[1739239075965,1.47036847,620.13,619.03,0.32308611]
[1739239076268,1.47003589,620.12,619.03,0.32308611]
[1739239076469,1.47003589,620.11,619.03,0.32308611]
[1739239076669,1.47003589,620.1,619.03,0.32308611]
[1739239076872,1.47003589,620.09,619.03,0.32308611]
[1739239077065,1.47003589,620.08,619.03,0.32308611]
[1739239077265,1.47003589,620.07,619.03,0.32308611]
[1739239077469,1.47003589,620.06,619.03,0.32308611]
[1739239077668,1.47003589,620.05,619.03,0.32308611]
[1739239077868,1.47003589,620.04,619.03,0.32308611]
[1739239078069,1.47003589,620.03,619.03,0.32308611]
[1739239078272,2.53890503,620.02,619.03,0.32308611]
[1739239078472,1.47003589,620.01,619.03,0.32308611]
[1739239078773,1.47003589,620.0,619.03,0.32308611]
[1739239078966,1.47003589,619.99,619.03,0.32308611]
[1739239079171,1.47003589,619.98,619.03,0.32308611]
[1739239079372,1.47003589,619.97,619.03,0.32308611]
[1739239079966,1.06886914,619.96,619.03,0.32308611]
[1739239080170,1.47003589,619.95,619.03,0.32308611]
[1739239080567,1.46992886,619.94,619.03,0.32308611]
[1739239080773,1.46991631,619.93,619.03,0.32308611]
[1739239080974,1.46991631,619.92,619.03,0.32308611]
[1739239081373,1.06886914,619.91,619.03,0.32308611]
[1739239081676,1.46991631,619.9,619.03,0.32308611]
[1739239082171,1.06886914,619.89,619.03,0.32308611]
[1739239082774,1.06886914,620.16,619.03,0.32308611]
[1739239082976,1.46986015,620.15,619.03,0.32308611]
[1739239083273,1.46986015,620.14,619.03,0.32308611]
[1739239083572,2.53872929,620.13,619.03,0.32308611]
[1739239083773,1.46986015,620.12,619.03,0.32308611]
[1739239083977,1.46986015,620.11,619.03,0.32308611]
[1739239084175,1.46973499,620.1,619.03,0.32308611]
[1739239084476,1.46973499,620.09,619.03,0.32308611]
[1739239084677,1.46973499,620.08,619.03,0.32308611]
[1739239084871,1.46973499,620.07,619.03,0.32308611]
[1739239085076,1.46973499,620.06,619.03,0.32308611]
[1739239085270,1.46973499,620.05,619.03,0.32308611]
[1739239085477,1.46973499,620.04,619.03,0.32308611]
[1739239085778,2.53860413,620.03,619.03,0.32308611]
[1739239085977,1.46973499,620.02,619.03,0.32308611]
[1739239086175,1.46973499,620.01,619.03,0.32308611]
[1739239086375,2.53845299,620.0,619.03,0.32308611]
[1739239086579,1.46958385,619.99,619.03,0.32308611]
[1739239087178,0.32249221,620.17,619.03,0.32308611]
[1739239087179,2.53845299,619.98,619.03,0.32308611]
[1739239087376,1.46958385,619.97,619.03,0.32308611]
[1739239087777,1.06886914,619.96,619.03,0.32308611]
[1739239088080,2.53845299,619.95,619.03,0.32308611]
[1739239088281,1.46958385,619.94,619.03,0.32308611]
[1739239088480,1.06886914,619.93,619.03,0.32308611]
[1739239088680,1.46958385,619.92,619.03,0.32308611]
[1739239089081,1.06886914,619.91,619.03,0.32308611]
[1739239089281,1.46958385,619.9,619.03,0.32308611]
[1739239089981,1.06886914,619.89,619.03,0.32308611]
[1739239090181,1.46958385,619.88,619.03,0.32308611]
[1739239090681,1.06886914,619.87,619.03,0.32308611]
[1739239090882,1.46958385,619.86,619.03,0.32308611]
[1739239091382,1.06886914,619.85,619.03,0.32308611]
[1739239092482,1.06886914,620.16,619.03,0.32308611]
[1739239092678,1.46969269,620.15,619.03,0.32308611]
[1739239092885,1.46969269,620.14,619.03,0.32308611]
[1739239093186,1.46968993,620.13,619.03,0.32308611]
[1739239093381,2.53855907,620.12,619.03,0.32308611]
[1739239093586,1.46968993,620.11,619.03,0.32308611]
[1739239093786,1.46968993,620.1,619.03,0.32308611]
[1739239093988,2.53855907,620.09,619.03,0.32308611]
[1739239094189,1.46968993,620.08,619.03,0.32308611]
[1739239094390,1.46968993,620.07,619.03,0.32308611]
[1739239094584,1.46968993,620.06,619.03,0.32308611]
[1739239094789,1.46968993,620.05,619.03,0.32308611]
[1739239094985,1.46968993,620.04,619.03,0.32308611]
[1739239095291,2.53855907,620.03,619.03,0.32308611]
[1739239095492,1.46968993,620.02,619.03,0.32308611]
[1739239095692,2.53855907,620.01,619.03,0.32308611]
[1739239095992,2.53855907,620.0,619.03,0.32308611]
[1739239096193,1.46968993,619.99,619.03,0.32308611]
[1739239096388,1.46968993,619.98,619.03,0.32308611]
[1739239096586,1.46968993,619.97,619.03,0.32308611]
[1739239096791,1.46968993,619.96,619.03,0.32308611]
[1739239096991,2.53855907,619.95,619.03,0.32308611]
[1739239097192,1.46968993,619.94,619.03,0.32308611]
[1739239097388,2.53855907,619.93,619.03,0.32308611]
[1739239097695,1.46968993,619.92,619.03,0.32308611]
[1739239097993,2.53855907,619.91,619.03,0.32308611]
[1739239098190,1.46968993,619.9,619.03,0.32308611]
[1739239098389,1.46968993,619.89,619.03,0.32308611]
[1739239098593,1.46968993,619.88,619.03,0.32308611]
[1739239098791,1.46827671,619.87,619.03,0.32308611]
[1739239098986,1.46827671,619.86,619.03,0.32308611]
[1739239099192,1.46827671,619.85,619.03,0.32308611]
[1739239099395,1.46827671,619.84,619.03,0.32308611]
[1739239099695,1.46827671,619.83,619.03,0.32308611]
[1739239099890,1.46827671,619.82,619.03,0.32308611]
[1739239100096,1.46827671,619.81,618.52,1.19824383]
[1739239100296,1.76490929,619.8,618.53,0.32334729]
[1739239100496,2.83377843,619.79,618.53,0.32334729]
[1739239100696,2.08760443,619.78,618.53,0.32334729]
[1739239100892,1.46827671,619.77,618.53,0.32334729]
[1739239101098,1.46827671,619.76,618.53,0.32334729]
[1739239101298,0.32269514,619.78,618.53,0.32334729]
[1739239101498,1.06886914,619.75,618.53,0.32334729]
[1739239101699,1.46601888,619.74,618.53,0.32334729]
[1739239101896,1.46601888,619.73,618.53,0.32334729]
[1739239102097,1.46601888,619.72,618.54,1.68631204]
[1739239102298,1.46601888,619.71,618.54,1.68631204]
[1739239102599,1.46601888,619.7,618.55,0.32333683]
[1739239102793,1.46601888,619.69,618.55,0.32333683]
[1739239102998,1.46375234,619.68,618.55,0.32333683]
[1739239103196,1.46375234,619.67,618.55,0.32333683]
[1739239103498,1.4628681,619.66,618.55,0.32333683]
[1739239103698,2.53173724,619.66,618.55,0.32333683]
[1739239103898,1.4628681,619.65,618.55,0.32333683]
[1739239104995,1.06886914,619.64,618.55,0.32333683]
[1739239105196,1.4628681,619.63,618.55,0.32333683]
[1739239105595,1.06886914,619.62,618.55,0.32333683]
[1739239106196,1.06886914,619.77,618.55,0.32333683]
[1739239106397,1.46156833,619.76,618.55,0.32333683]
[1739239106800,1.06886914,619.75,618.55,0.32333683]
[1739239106995,1.46156833,619.74,618.55,0.32333683]
[1739239107692,1.06886914,619.73,618.55,0.32333683]
[1739239107892,1.46156833,619.72,618.55,0.32333683]
[1739239108299,1.06886914,619.71,618.55,0.32333683]
[1739239108598,1.46156833,619.7,618.55,0.32333683]
[1739239109000,1.06886914,619.69,618.55,0.32333683]
[1739239109201,1.46156833,619.68,618.55,0.32333683]
[1739239109402,1.06886914,619.67,618.55,0.32333683]
[1739239110102,1.06886914,619.77,618.55,0.32333683]
[1739239110302,1.45991945,619.76,618.55,0.32333683]
[1739239110900,1.06886914,619.75,618.55,0.32333683]
[1739239111703,1.06886914,619.77,618.55,0.32333683]
[1739239112506,1.75532957,619.76,618.55,0.32333683]
[1739239112706,0.32271597,619.74,618.13,1.19824383]
[1739239112903,1.75532957,619.73,618.14,0.32355129]
[1739239113100,0.3227316,619.71,618.14,0.32355129]
[1739239113305,1.75539929,619.7,618.14,0.32355129]
[1739239113505,0.32274722,619.68,618.14,0.32355129]
[1739239113701,1.75539929,619.67,618.14,0.32355129]
[1739239114003,1.75539929,619.66,618.15,1.68710913]
[1739239114201,1.75539929,619.65,618.15,1.68710913]
[1739239114400,1.75539929,619.64,618.15,1.68710913]
[1739239114603,1.75539929,619.63,618.15,1.68710913]
[1739239114802,1.75539929,619.62,618.16,0.32354083]
[1739239115003,1.75539929,619.61,618.16,0.32354083]
[1739239115204,1.75539929,619.6,618.16,0.32354083]
[1739239115405,2.82426843,619.59,618.16,0.32354083]
[1739239115604,1.75539929,619.58,618.16,0.32354083]
[1739239115802,1.75539929,619.57,618.16,0.32354083]
[1739239116004,1.75539929,619.56,618.16,0.32354083]
[1739239116307,1.75539929,619.55,618.16,0.32354083]
[1739239116510,1.75539929,619.54,618.16,0.32354083]
[1739239116809,1.75539929,619.53,618.16,0.32354083]
[1739239117103,1.75539929,619.52,618.16,0.32354083]
[1739239117307,1.75539929,619.51,618.16,0.32354083]
[1739239117509,1.75539929,619.5,618.16,0.32354083]
[1739239117709,1.75539929,619.49,618.16,0.32354083]
[1739239117908,1.75539929,619.48,618.16,0.32354083]
[1739239118107,1.74597092,619.47,618.16,0.32354083]
[1739239118308,1.74597092,619.46,618.16,0.32354083]
[1739239118507,2.5180152,619.45,618.16,0.32354083]
[1739239118702,1.44914606,619.44,618.16,0.32354083]
[1739239119003,1.44914606,619.43,618.16,0.32354083]
[1739239119209,1.44914606,619.42,618.16,0.32354083]
[1739239119507,1.44914606,619.41,618.16,0.32354083]
[1739239119707,2.51522495,619.4,618.16,0.32354083]
[1739239119902,1.44635581,619.39,618.16,0.32354083]
[1739239120108,1.06886914,619.38,618.16,0.32354083]
[1739239120301,2.51522495,619.37,618.16,0.32354083]
[1739239120501,1.76926978,619.36,618.16,0.32354083]
[1739239120705,2.83814413,619.35,618.16,0.32354083]
[1739239121007,1.76928021,619.34,618.16,0.32354083]
[1739239121208,2.51522495,619.33,618.16,0.32354083]
[1739239121404,1.76929064,619.32,618.16,0.32354083]
[1739239121602,1.76929585,619.31,618.16,0.32354083]
[1739239121806,1.76685327,619.3,618.16,0.32354083]
[1739239122006,1.76685848,619.29,618.16,0.32354083]
[1739239122207,2.83573284,619.28,618.16,0.32354083]
[1739239122407,1.76686891,619.27,618.16,0.32354083]
[1739239122604,1.76687413,619.26,618.16,0.32354083]
[1739239122807,1.76687934,619.25,618.16,0.32354083]
[1739239123011,1.76688456,619.24,618.16,0.32354083]
[1739239123208,2.83575891,619.23,618.16,0.32354083]
[1739239123403,1.76689499,619.22,618.16,0.32354083]
[1739239123609,1.7669002,619.21,618.16,0.32354083]
[1739239123808,1.76690542,619.2,618.16,0.32354083]
[1739239124009,1.44390801,619.19,618.16,0.32354083]
[1739239124304,1.06886914,619.18,618.16,0.32354083]
[1739239124508,1.44390801,619.17,618.16,0.32354083]
[1739239124708,1.06886914,619.16,618.16,0.32354083]
[1739239124908,1.44390801,619.15,618.16,0.32354083]
[1739239125106,1.06886914,619.14,618.16,0.32354083]
[1739239125306,1.44390801,619.13,618.16,0.32354083]
[1739239125509,1.06886914,619.12,618.16,0.32354083]
[1739239125706,1.44390801,619.11,618.16,0.32354083]
[1739239126105,1.06886914,619.1,618.16,0.32354083]
[1739239126709,1.43947028,619.09,618.16,0.32354083]
[1739239126908,1.73648319,619.08,618.16,0.32354083]
[1739239127108,1.06886914,619.19,618.16,0.32354083]
[1739239127109,1.73648319,619.07,618.16,0.32354083]
[1739239127303,1.43947028,619.06,616.07,1.19824383]
[1739239127713,1.06886914,619.05,616.21,0.32456467]
[1739239128010,1.43833007,619.04,616.21,0.32456467]
[1739239128607,1.43833007,619.04,616.22,1.68942974]
[1739239129012,1.06886914,619.03,616.32,1.19824383]
[1739239129411,1.06886914,619.19,616.32,1.19824383]
[1739239129612,1.73405402,619.18,616.32,1.19824383]
[1739239129912,2.80292316,619.17,616.46,0.32443305]
[1739239130112,2.0570723,619.16,616.46,0.32443305]
[1739239130412,2.80292316,619.15,616.46,0.32443305]
[1739239130609,1.73405402,619.14,616.46,0.32443305]
[1739239130807,1.73405402,619.13,616.46,0.32443305]
[1739239131007,1.73405402,619.12,616.46,0.32443305]
[1739239131313,1.43705394,619.11,616.46,0.32443305]
[1739239131514,1.06886914,619.1,616.46,0.32443305]
[1739239131711,1.43705394,619.09,616.46,0.32443305]
[1739239132107,1.06886914,619.1,616.46,0.32443305]
[1739239132313,1.43588101,619.09,616.46,0.32443305]
[1739239132615,1.3658616,619.08,616.46,0.32443305]
[1739239132813,1.06886914,619.08,616.46,0.32443305]
[1739239133208,0.29699238,619.07,616.46,0.32443305]
[1739239133410,1.36586152,619.07,616.46,0.32443305]
[1739239133611,0.29699238,619.06,616.46,0.32443305]
[1739239134011,1.36586152,619.06,616.46,0.32443305]
[1739239134212,0.29699238,619.05,616.54,1.19824383]
[1739239134414,1.36586152,619.05,616.66,0.32432783]
[1739239134614,1.06886914,619.05,616.66,0.32432783]
[1739239135115,1.06886914,619.15,616.66,0.32432783]
[1739239135315,0.29699467,619.14,616.66,0.32432783]
[1739239135515,1.36586381,619.14,616.66,0.32432783]
[1739239135815,0.29699467,619.13,616.66,0.32432783]
[1739239136216,0.29699467,619.15,616.66,0.32432783]
[1739239136417,0.29699467,619.14,616.66,0.32432783]
[1739239136610,0.29699467,619.15,616.66,0.32432783]
[1739239136815,0.29699467,619.14,616.8,1.19824383]
[1739239137012,0.32301828,619.16,616.91,0.32419639]
[1739239137213,0.29699174,619.15,616.91,0.32419639]
[1739239138913,0.29699174,619.15,616.93,1.19824383]
[1739239140523,1.68904708,619.14,616.93,1.19824383]
[1739239140721,0.29699174,619.13,616.93,1.19824383]
[1739239141624,0.29699174,619.13,616.91,0.32419639]
[1739239141625,0.29711428,619.12,616.97,1.19824383]
[1739239142221,1.43214343,619.11,617.07,0.32411233]
[1739239142420,0.62016386,619.1,617.07,0.32411233]
[1739239142625,0.32306002,619.08,617.07,0.32411233]
[1739239142925,0.29711428,619.07,617.07,0.32411233]
[1739239143122,0.32307046,619.06,617.07,0.32411233]
[1739239143324,1.7291595,619.05,617.07,0.32411233]
[1739239143521,2.05224039,619.04,617.07,0.32411233]
[1739239143723,2.05224561,619.03,617.07,0.32411233]
[1739239143922,1.7291595,619.02,617.07,0.32411233]
[1739239144124,2.05225605,619.01,617.07,0.32411233]
[1739239144324,2.05202191,619.0,617.07,0.32411233]
[1739239144524,2.05202713,618.99,617.07,0.32411233]